fUST/lending_fUST_20260331
["ID","MTS","AMOUNT","RATE_DAILY","PERIOD"]
[419147162,1774940110601,-160.0,0.00036067,120]
[419147163,1774940110637,-153.0,0.00036067,120]
[419147164,1774940110669,-162.0,0.00036067,120]
[419147165,1774940110855,-386.0,0.00036067,120]
[419147166,1774940110883,-152.0,0.00036067,120]
[419147167,1774940110913,-357.53,0.00036085,60]
[419147168,1774940110945,-3206.924496,0.00036156,21]
[419147169,1774940110976,-357.53,0.00036185,60]
[419147170,1774940111004,-1000.0,0.000362,120]
[419147171,1774940111034,-357.53,0.00036285,60]
[419147172,1774940111065,-357.53,0.00036385,60]
[419147173,1774940111095,-170.0,0.000364,120]
[419147174,1774940111124,-451.0,0.00036438,17]
[419147175,1774940111158,-357.53,0.00036485,60]
[419147176,1774940111187,-1000.0,0.000365,120]
[419147177,1774940111219,-357.53,0.00036585,60]
[419147178,1774940111250,-357.53,0.00036685,60]
[419147179,1774940111280,-500.0,0.00036712,20]
[419147180,1774940111308,-15000.0,0.0003676,14]
[419147181,1774940111338,-357.53,0.00036785,60]
[419147182,1774940111365,-1000.0,0.000368,120]
[419147183,1774940111395,-357.53,0.00036885,60]
[419147184,1774940111423,-170.0,0.000369,120]
[419147185,1774940111452,-2100.0,0.000369,120]
[419147186,1774940111482,-357.53,0.00036985,60]
[419147187,1774940111510,-451.0,0.00036986,18]
[419147188,1774940111539,-160.0,0.00037067,120]
[419147189,1774940111567,-153.0,0.00037067,120]
[419147190,1774940111595,-162.0,0.00037067,120]
[419147191,1774940111623,-386.0,0.00037067,120]
[419147192,1774940111651,-152.0,0.00037067,120]
[419147193,1774940111681,-357.53,0.00037085,60]
[419147194,1774940111710,-1000.0,0.000371,120]
[419147195,1774940111740,-357.53,0.00037185,60]
[419147196,1774940111770,-357.53,0.00037285,60]
[419147197,1774940111800,-170.0,0.000373,120]
[419147198,1774940111829,-357.53,0.00037385,60]
[419147199,1774940111856,-1000.0,0.000374,120]
[419147200,1774940111885,-357.53,0.00037485,60]
[419147201,1774940111913,-451.0,0.00037534,19]
[419147202,1774940111944,-357.53,0.00037585,60]
[419147203,1774940111973,-357.53,0.00037685,60]
[419147204,1774940112000,-1000.0,0.000377,120]
[419147205,1774940112029,-1451.74,0.000377,60]
[419147206,1774940112059,-1322.056,0.000377,60]
[419147207,1774940112089,-1322.056,0.000377,60]
[419147208,1774940112116,-1322.05,0.000377,60]
[419147209,1774940112144,-292.25,0.000377,120]
[419147210,1774940112172,-543.975,0.000377,30]
[419147211,1774940112201,-357.53,0.00037785,60]
[419147212,1774940112231,-170.0,0.000378,120]
[419147213,1774940112259,-500.0,0.00037808,22]
[419147214,1774940112292,-357.53,0.00037885,60]
[419147215,1774940112321,-2100.0,0.000379,120]
[419147216,1774940112352,-357.53,0.00037985,60]
[419147217,1774940112381,-199.11,0.00038,120]
[419147218,1774940112408,-989.68,0.00038,120]
[419147219,1774940112435,-1000.0,0.00038,120]
[419147220,1774940112464,-197.2867201,0.00038,120]
[419147221,1774940112492,-500.0,0.00038,120]
[419147222,1774940112521,-160.0,0.00038067,120]
[419147223,1774940112551,-153.0,0.00038067,120]
[419147224,1774940112580,-162.0,0.00038067,120]
[419147225,1774940112607,-386.0,0.00038067,120]
[419147226,1774940112635,-152.0,0.00038067,120]
[419147227,1774940112663,-451.0,0.00038082,20]
[419147228,1774940112694,-357.53,0.00038085,60]
[419147229,1774940112723,-357.53,0.00038185,60]
[419147230,1774940112751,-170.0,0.000382,120]
[419147231,1774940112780,-357.53,0.00038285,60]
[419147232,1774940112808,-225.78198289,0.00038356,120]
[419147233,1774940112836,-357.53,0.00038385,120]
[419147234,1774940112865,-200.0,0.00038419,120]
[419147235,1774940112894,-357.53,0.00038485,120]
[419147236,1774940112922,-339.232,0.00038489,30]
[419147237,1774940112951,-209.07,0.000385,120]
[419147238,1774940112980,-200.0,0.00038526,120]
[419147239,1774940113007,-2000.0,0.00038567,21]
[419147240,1774940113038,-357.53,0.00038585,120]
[419147241,1774940113066,-451.0,0.0003863,21]
[419147242,1774940113097,-357.53,0.00038685,120]
[419147243,1774940113127,-170.0,0.000387,120]
[419147244,1774940113158,-357.53,0.00038785,120]
[419147245,1774940113189,-1000.0,0.00038816,60]
[419147246,1774940113221,-492.0,0.00038816,60]
[419147247,1774940113252,-357.53,0.00038885,120]
[419147248,1774940113281,-2100.0,0.000389,120]
[419147249,1774940113310,-500.0,0.00038904,24]
[419147250,1774940113341,-357.53,0.00038985,120]
[419147251,1774940113370,-219.52,0.00039,120]
[419147252,1774940113399,-160.0,0.00039067,120]
[419147253,1774940113429,-153.0,0.00039067,120]
[419147254,1774940113458,-162.0,0.00039067,120]
[419147255,1774940113487,-386.0,0.00039067,120]
[419147256,1774940113516,-152.0,0.00039067,120]
[419147257,1774940113638,-357.53,0.00039085,120]
[419147258,1774940113667,-451.0,0.00039178,22]
[419147259,1774940113698,-357.53,0.00039185,120]
[419147260,1774940113728,-170.0,0.000392,120]
[419147261,1774940113758,-200.0,0.0003926,120]
[419147262,1774940113790,-357.53,0.00039285,120]
[419147263,1774940113820,-357.53,0.00039385,120]
[419147264,1774940113851,-357.53,0.00039485,120]
[419147265,1774940113879,-158.57611673,0.000395,14]
[419147266,1774940113911,-357.53,0.00039585,120]
[419147267,1774940113941,-170.0,0.000396,120]
[419147268,1774940113973,-357.53,0.00039685,120]
[419147269,1774940114002,-451.0,0.00039726,23]
[419147270,1774940114032,-357.53,0.00039785,120]
[419147271,1774940114064,-357.53,0.00039885,120]
[419147272,1774940114094,-453.46,0.000399,60]
[419147273,1774940114124,-452.07,0.000399,60]
[419147274,1774940114153,-207.2469139,0.000399,120]
[419147275,1774940114182,-2100.0,0.000399,120]
[419147276,1774940114211,-357.53,0.00039985,120]
[419147277,1774940114239,-500.0,0.0004,26]
[419147278,1774940114268,-446.58015506,0.0004,120]
[419147279,1774940114296,-250.93564618,0.0004,120]
[419147280,1774940114324,-634.97,0.0004,10]
[419147281,1774940114352,-500.0,0.0004,120]
[419147282,1774940114380,-270.8461344,0.0004,30]
[419147283,1774940114407,-65713.06540507,0.0004,120]
[419147284,1774940114438,-500.0,0.0004,120]
[419147285,1774940114466,-100000.0,0.0004,20]
[419147286,1774940114494,-1330.0,0.0004,120]
[419147287,1774940114522,-1030.0,0.0004,30]
[419147288,1774940114552,-160.0,0.00040067,120]
[419147289,1774940114581,-153.0,0.00040067,120]
[419147290,1774940114609,-162.0,0.00040067,120]
[419147291,1774940114638,-386.0,0.00040067,120]
[419147292,1774940114666,-152.0,0.00040067,120]
[419147293,1774940114696,-357.53,0.00040085,120]
[419147294,1774940114725,-170.0,0.000401,120]
[419147295,1774940114757,-357.53,0.00040185,120]
[419147296,1774940114787,-451.0,0.00040273,24]
[419147297,1774940114818,-357.53,0.00040285,120]
[419147298,1774940114848,-357.53,0.00040385,120]
[419147299,1774940114877,-2007.95135937,0.00040411,100]
[419147300,1774940114908,-357.53,0.00040485,120]
[419147301,1774940114939,-357.53,0.00040585,120]
[419147302,1774940114968,-170.0,0.000406,120]
[419147303,1774940114998,-357.5396833,0.00040685,120]
[419147304,1774940115026,-310.30734324,0.000408,30]
[419147305,1774940115053,-451.0,0.00040821,25]
[419147306,1774940115081,-2100.0,0.000409,120]
[419147307,1774940115112,-170.0,0.00041,120]
[419147308,1774940115140,-1030.0,0.00041,30]
[419147309,1774940115169,-160.0,0.00041067,120]
[419147310,1774940115197,-153.0,0.00041067,120]
[419147311,1774940115224,-166.14088484,0.00041067,120]
[419147312,1774940115252,-386.0,0.00041067,120]
[419147313,1774940115279,-152.0,0.00041067,120]
[419147314,1774940115309,-500.0,0.00041095,120]
[419147315,1774940115338,-500.0,0.00041096,28]
[419147316,1774940115366,-150.38853639,0.000411,120]
[419147317,1774940115394,-150.38853639,0.000411,120]
[419147318,1774940115422,-150.38853639,0.000411,120]
[419147319,1774940115449,-150.38853639,0.000411,120]
[419147320,1774940115476,-150.38853639,0.000411,120]
[419147321,1774940115504,-150.38,0.000411,120]
[419147322,1774940115540,-150.38853639,0.000411,120]
[419147323,1774940115567,-150.38853639,0.000411,120]
[419147324,1774940115594,-150.38853639,0.000411,120]
[419147325,1774940115621,-150.38853639,0.000411,120]
[419147326,1774940115648,-150.38853639,0.000411,120]
[419147327,1774940115675,-150.38853639,0.000411,120]
[419147328,1774940115701,-150.38853639,0.000411,120]
[419147329,1774940115729,-150.38853639,0.000411,120]
[419147330,1774940115757,-150.38853639,0.000411,120]
[419147331,1774940115784,-150.38853639,0.000411,120]
[419147332,1774940115811,-150.38853639,0.000411,120]
[419147333,1774940115838,-150.38853639,0.000411,120]
[419147334,1774940115866,-150.38853639,0.000411,120]
[419147335,1774940115894,-150.38,0.000411,120]
[419147336,1774940115922,-236.34,0.000411,120]
[419147337,1774940115949,-451.0,0.00041369,26]
[419147338,1774940115979,-500.0,0.00041369,120]
[419147339,1774940116007,-170.0,0.000415,120]
[419147340,1774940116036,-500.0,0.00041643,120]
[419147341,1774940116064,-250.0,0.00041644,120]
[419147342,1774940116092,-170.0,0.000419,120]
[419147343,1774940116120,-2100.0,0.000419,120]
[419147344,1774940116147,-451.0,0.00041917,27]
[419147345,1774940116175,-423.75417205,0.00041917,120]
[419147346,1774940116202,-250.0,0.00041918,120]
[419147347,1774940116230,-362.76,0.00042,90]
[419147348,1774940116258,-361.66,0.00042,120]
[419147349,1774940116286,-500.0,0.00042,120]
[419147350,1774940116314,-1030.0,0.00042,30]
[419147351,1774940116342,-500.0,0.00042034,30]
[419147352,1774940116476,-200.0,0.00042103,120]
[419147353,1774940116505,-250.0,0.00042192,120]
[419147354,1774940116537,-500.0,0.00042192,30]
[419147355,1774940116567,-170.0,0.000424,120]
[419147356,1774940116595,-8738.4214,0.0004244,30]
[419147357,1774940116627,-451.0,0.00042465,28]
[419147358,1774940116655,-250.0,0.00042466,120]
[419147359,1774940116683,-200.0,0.00042521,120]
[419147360,1774940116713,-1000.0,0.00042698,60]
[419147361,1774940116743,-791.0,0.00042698,60]
[419147362,1774940116773,-4342.21538745,0.00042894,120]
[419147363,1774940116804,-170.0,0.000429,120]
[419147364,1774940116833,-2100.0,0.000429,120]
[419147365,1774940116863,-300.0,0.000429,120]
[419147366,1774940116891,-506.78,0.00043,120]
[419147367,1774940116921,-1030.0,0.00043,30]
[419147368,1774940116949,-451.0,0.00043013,29]
[419147369,1774940116978,-170.0,0.000433,120]
[419147370,1774940117006,-451.0,0.00043561,30]
[419147371,1774940117034,-207.36989368,0.000438,120]
[419147372,1774940117062,-170.0,0.000438,120]
[419147373,1774940117090,-515.74,0.000438,120]
[419147374,1774940117118,-300.0,0.00043836,30]
[419147375,1774940117146,-300.0,0.00043836,30]
[419147376,1774940117175,-227.0,0.00043836,30]
[419147377,1774940117204,-250.0,0.00043836,30]
[419147378,1774940117232,-250.0,0.00043836,30]
[419147379,1774940117260,-203.0,0.00043836,30]
[419147380,1774940117288,-2100.0,0.000439,120]
[419147381,1774940117317,-949.53,0.00043993,120]
[419147382,1774940117344,-500.0,0.00044,120]
[419147383,1774940117372,-1030.0,0.00044,30]
[419147384,1774940117401,-451.0,0.00044109,31]
[419147385,1774940117431,-500.0,0.00044246,30]
[419147386,1774940117460,-170.0,0.000443,120]
[419147387,1774940117486,-450.381,0.00044552,71]
[419147388,1774940117513,-451.0,0.00044657,32]
[419147389,1774940117542,-194.72,0.00044658,120]
[419147390,1774940117571,-170.0,0.000447,120]
[419147391,1774940117601,-2100.0,0.000449,120]
[419147392,1774940117628,-1485.9126611,0.00044978,60]
[419147393,1774940117656,-249.85425865,0.00044995,60]
[419147394,1774940117684,-472.04541859,0.00045,120]
[419147395,1774940117711,-886.11147729,0.00045,20]
[419147396,1774940117740,-528.7013425,0.00045,30]
[419147397,1774940117770,-510.82863359,0.00045,120]
[419147398,1774940117798,-220.3051713,0.00045,90]
[419147399,1774940117825,-394.94257703,0.00045,120]
[419147400,1774940117856,-624.11465804,0.00045,120]
[419147401,1774940117885,-648.83505485,0.00045,120]
[419147402,1774940117916,-2000.0,0.00045,120]
[419147403,1774940117944,-155.91276916,0.00045,120]
[419147404,1774940117974,-1311.30900227,0.00045,120]
[419147405,1774940118003,-97534.04159764,0.00045,120]
[419147406,1774940118033,-159950.57102767,0.00045,30]
[419147407,1774940151832,-600.0,0.00023663,10]
[419147408,1774940151871,-877.509928,0.00024935,14]
[419147409,1774940151904,-720.0,0.00026029,10]
[419147410,1774940151933,-226.930767,0.00026895,14]
[419147411,1774940151968,-3890.662232,0.00027429,14]
[419147412,1774940152001,-864.0,0.00028632,30]
[419147413,1774940152035,-10504.788027,0.00031169,14]
[419147414,1774940152067,-1000.0,0.00031495,30]
[419147415,1774940152097,-180.24890871,0.00032,14]
[419147416,1774940152139,-1000.0,0.00034645,30]
[419147417,1774940152169,-244.0,0.00034645,30]
[419147418,1774940152199,-5000.0,0.00035066,120]
[419147419,1774940152241,-1834.07,0.00035067,30]
[419147420,1774940152270,-3112.529785,0.00036156,21]
[419147421,1774940152301,-1000.0,0.00038109,30]
[419147422,1774940152331,-492.0,0.00038109,30]
[419147423,1774940152362,-227.67,0.00038863,120]
[419147424,1774940152391,-1320.17,0.00039,120]
[419147425,1774940152418,-1840.84,0.00039,120]
[419147426,1774940152446,-231.13,0.00039,120]
[419147427,1774940152473,-1320.17,0.0004056,120]
[419147428,1774940152501,-1840.84,0.0004056,120]
[419147429,1774940152528,-231.13,0.0004056,120]
[419147430,1774940152560,-1000.0,0.0004192,60]
[419147431,1774940152589,-791.0,0.0004192,60]
[419147432,1774940152617,-1320.17,0.00042182,120]
[419147433,1774940152645,-1840.84,0.00042182,120]
[419147434,1774940152674,-231.13,0.00042182,120]
[419147435,1774940152701,-1320.17,0.0004387,120]
[419147436,1774940152728,-1840.84,0.0004387,120]
[419147437,1774940152756,-231.13,0.0004387,120]
[419147438,1774940152784,-1031.08870713,0.00044,30]
[419147439,1774940152812,-20696.49146589,0.00045,30]
[419147440,1774940152840,-351101.17812514,0.00045,30]
[419147441,1774940152867,-62391.85786908,0.00045,30]
[419147442,1774940152894,-100100.0,0.00045,120]
[419147443,1774940152921,-1319.0,0.00045,120]
[419147444,1774940152949,-1897.387,0.00045,30]
[419147445,1774940152977,-1030.0,0.00045,30]
[419147446,1774940153006,-170.0,0.000452,120]
[419147447,1774940153034,-2312.83697232,0.00045204,33]
[419147448,1774940153064,-451.0,0.00045205,33]
[419147449,1774940153092,-250.0,0.00045205,120]
[419147450,1774940153121,-250.0,0.00045205,120]
[419147451,1774940153151,-170.0,0.000456,120]
[419147452,1774940153178,-2230.315306,0.00045623,60]
[419147453,1774940153205,-1320.17,0.00045624,120]
[419147454,1774940153234,-1840.84,0.00045624,120]
[419147455,1774940153262,-231.13,0.00045624,120]
[419147456,1774940153289,-2150.738,0.00045752,34]
[419147457,1774940153316,-451.0,0.00045753,34]
[419147458,1774940153345,-2100.0,0.000459,120]
[419147459,1774940153373,-478.75725327,0.00045932,75]
[419147460,1774940153400,-174.61919141,0.00045932,75]
[419147461,1774940153428,-578.20924308,0.00045932,75]
[419147462,1774940153456,-578.20924308,0.00045932,75]
[419147463,1774940153485,-461.67526834,0.00045994,30]
[419147464,1774940153513,-168.3888056,0.00045994,30]
[419147465,1774940153542,-153.04540884,0.00045994,30]
[419147466,1774940153572,-1897.1963958,0.00045994,30]
[419147467,1774940153601,-170.34758973,0.00045994,30]
[419147468,1774940153633,-557.5788265,0.00045994,30]
[419147469,1774940153663,-501.24596634,0.00045994,30]
[419147470,1774940153690,-557.5788265,0.00045994,30]
[419147471,1774940153718,-2074.0,0.00045994,30]
[419147472,1774940153747,-151.07704929,0.00045995,60]
[419147473,1774940153776,-445.202766,0.00045999,90]
[419147474,1774940153803,-151.0,0.00045999,90]
[419147475,1774940153830,-162.380719,0.00045999,90]
[419147476,1774940153858,-162.380719,0.00045999,90]
[419147477,1774940153887,-537.6845,0.00045999,90]
[419147478,1774940153917,-500.0,0.00045999,90]
[419147479,1774940153947,-537.6845,0.00045999,90]
[419147480,1774940153976,-6997.0,0.00046,120]
[419147481,1774940154005,-8250.0,0.00046,120]
[419147482,1774940154035,-2000.0,0.00046,120]
[419147483,1774940154063,-1461.0,0.00046,90]
[419147484,1774940154091,-2006.96,0.00046,60]
[419147485,1774940154119,-1000.0,0.00046,120]
[419147486,1774940154149,-500.0,0.00046,120]
[419147487,1774940154178,-170.0,0.000461,120]
[419147488,1774940154208,-1000.0,0.00046112,120]
[419147489,1774940154238,-1000.0,0.00046112,120]
[419147490,1774940154369,-200.0,0.00046188,120]
[419147491,1774940154399,-200.0,0.00046269,120]
[419147492,1774940154428,-157.10045542,0.000463,35]
[419147493,1774940154464,-429.318,0.000463,35]
[419147494,1774940154493,-151.0,0.000463,35]
[419147495,1774940154522,-156.587,0.000463,35]
[419147496,1774940154551,-151.71274857,0.000463,35]
[419147497,1774940154582,-160.39163432,0.000463,35]
[419147498,1774940154613,-156.587,0.000463,35]
[419147499,1774940154644,-518.5,0.000463,35]
[419147500,1774940154673,-500.0,0.000463,35]
[419147501,1774940154700,-518.5,0.000463,35]
[419147502,1774940154730,-2000.0,0.000463,35]
[419147503,1774940154759,-451.0,0.00046301,35]
[419147504,1774940154787,-1498.0,0.00046389,68]
[419147505,1774940154816,-151.0,0.00046574,120]
[419147506,1774940154844,-199.4577856,0.00046574,120]
[419147507,1774940154872,-414.0,0.00046574,120]
[419147508,1774940154901,-151.0,0.00046574,120]
[419147509,1774940154930,-151.0,0.00046574,120]
[419147510,1774940154958,-267.82883704,0.00046574,120]
[419147511,1774940154986,-151.0,0.00046574,120]
[419147512,1774940155016,-160.0,0.00046574,120]
[419147513,1774940155045,-151.0,0.00046574,120]
[419147514,1774940155074,-500.0,0.00046574,120]
[419147515,1774940155103,-500.0,0.00046574,120]
[419147516,1774940155130,-500.0,0.00046574,120]
[419147517,1774940155158,-151.08964286,0.00046574,120]
[419147518,1774940155186,-631.96531397,0.00046574,120]
[419147519,1774940155214,-500.0,0.00046575,30]
[419147520,1774940155243,-300.0,0.00046575,120]
[419147521,1774940155271,-300.0,0.00046575,120]
[419147522,1774940155300,-207.0,0.00046575,120]
[419147523,1774940155327,-250.0,0.00046575,120]
[419147524,1774940155355,-250.0,0.00046575,120]
[419147525,1774940155383,-188.0,0.00046575,120]
[419147526,1774940155411,-250.0,0.00046575,120]
[419147527,1774940157643,201.03,0.00046575,30]
[419147528,1774940269784,44361.76,0.00035066,120]
[419147529,1774940280545,1000.0,0.000326,120]
[419147530,1774940299747,209.94854407,0.00035066,120]
[419147531,1774940299783,312.38339634,0.00035066,120]
[419147532,1774940299817,284.93962038,0.00035066,120]
[419147533,1774940299944,202.02769478,0.00035066,120]
[419147534,1774940300046,209.94854407,0.00035066,120]
[419147535,1774940300081,312.38339634,0.00035066,120]
[419147536,1774940300138,284.93962038,0.00035066,120]
[419147537,1774940300392,209.94854407,0.00035066,120]
[419147538,1774940300427,312.38339634,0.00035066,120]
[419147539,1774940300464,284.93962038,0.00035066,120]
[419147540,1774940300678,209.94854407,0.00035066,120]
[419147541,1774940300959,284.93962038,0.00035066,120]
[419147542,1774940301006,209.94854407,0.00035066,120]
[419147543,1774940301049,284.93962038,0.00035066,120]
[419147544,1774940301315,209.94854407,0.00035066,120]
[419147545,1774940301362,284.93962038,0.00035066,120]
[419147546,1774940301630,209.94854407,0.00035066,120]
[419147547,1774940301669,284.93962038,0.00035066,120]
[419147548,1774940301928,209.94854407,0.00035066,120]
[419147549,1774940302379,209.94854407,0.00035066,120]
[419147550,1774940302673,209.94854407,0.00035066,120]
[419147551,1774940302970,209.94854407,0.00035066,120]
[419147552,1774940303275,209.94854407,0.00035066,120]
[419147553,1774940303601,209.94854407,0.00035066,120]
[419147554,1774940303904,209.94854407,0.00035066,120]
[419147555,1774940419700,284.93962035,0.00035066,120]
[419147556,1774940419737,209.94854401,0.00035066,120]
[419147590,1774940520335,-278.25760438,0.00013699,2]
[419147591,1774940560245,500.0,0.00032876,120]
[419147593,1774940560495,500.0,0.00032876,120]
[419147594,1774940560717,500.0,0.00032876,120]
[419147595,1774940560928,500.0,0.00032876,120]
[419147596,1774940561147,500.0,0.00032876,120]
[419147597,1774940561371,500.0,0.00032876,120]
[419147598,1774940561600,501.0,0.00032876,120]
[419147612,1774940956592,1702.31,0.00035092,120]
[419147613,1774941000501,540.89951275,0.00035092,120]
[419147839,1774941043137,-400.65107667,0.00013699,2]
[419147840,1774941043147,-1000.0,0.00013699,2]
[419147841,1774941043157,-361.69102279,0.00020704,2]
[419147842,1774941043167,-401.30693767,0.00021209,2]
[419147843,1774941043176,-713.43455586,0.00021209,2]
[419147844,1774941043186,-459.0,0.00022,2]
[419147845,1774941043196,-213.0,0.00022,2]
[419147846,1774941043206,-270.0,0.00022324,2]
[419147847,1774941043216,-608.42996172,0.00022325,2]
[419147854,1774941046116,-110.03807251,0.00022325,2]
[419147855,1774941046125,-1277.27650529,0.00022325,2]
[419147856,1774941046135,-450.381,0.00022638,2]
[419147857,1774941046144,-873.22206392,0.0002277,2]
[419147858,1774941046171,-1007.83727091,0.0002277,2]
[419147859,1774941046180,-2770.87959183,0.000229,2]
[419147860,1774941046190,-2364.98001957,0.000229,2]
[419147861,1774941046199,-500.0,0.00022973,2]
[419147862,1774941046208,-212.54342209,0.00022973,2]
[419147863,1774941046218,-502.91666232,0.00022973,2]
[419147864,1774941046227,-500.94067614,0.00022973,2]
[419147865,1774941046237,-501.17440161,0.00022973,2]
[419147866,1774941046247,-494.38813244,0.00022973,2]
[419147867,1774941046256,-506.37519551,0.00022973,2]
[419147868,1774941046266,-504.9102868,0.00022973,2]
[419147869,1774941046275,-389.45,0.0002299,10]
[419147870,1774941046285,-223.68858104,0.00022999,2]
[419147871,1774941046295,-156.58200672,0.00022999,2]
[419147872,1774941046304,-459.0,0.00023,2]
[419147873,1774941046314,-213.0,0.00023,2]
[419147874,1774941046323,-146343.44609994,0.00023,2]
[419147878,1774941648607,500.0,0.00032876,120]
[419147879,1774941648861,500.0,0.00032876,120]
[419147880,1774941649090,277.75,0.00032876,120]
[419147889,1774941882026,875.76,0.00032876,120]
[419147890,1774941882249,875.76,0.00032876,120]
[419147891,1774941882507,875.76,0.00032876,120]
[419147892,1774941882761,875.76,0.00032876,120]
[419147893,1774941882996,875.76,0.00032876,120]
[419147894,1774941883236,875.76,0.00032876,120]
[419147895,1774941883517,875.76,0.00032876,120]
[419147896,1774941883753,875.76,0.00032876,120]
[419147897,1774941884007,875.76,0.00032876,120]
[419147899,1774941884345,875.76,0.00032876,120]
[419147900,1774941884547,875.76,0.00032876,120]
[419147901,1774941884798,875.76,0.00032876,120]
[419147902,1774941885025,875.76,0.00032876,120]
[419147903,1774941885243,875.76,0.00032876,120]
[419147904,1774941885496,875.76,0.00032876,120]
[419147905,1774941885721,875.76,0.00032876,120]
[419147906,1774941886089,875.76,0.00032876,120]
[419147907,1774941886366,875.76,0.00032876,120]
[419147908,1774941886587,875.76,0.00032876,120]
[419147909,1774941886842,875.76,0.00032876,120]
[419147910,1774941887060,875.76,0.00032876,120]
[419147911,1774941887287,875.76,0.00032876,120]
[419147912,1774941887506,875.76,0.00032876,120]
[419147913,1774941887769,875.92516299,0.00032876,120]
[419147914,1774941938641,488.4,0.00035089,120]
[419147915,1774941939066,488.4,0.00035089,120]
[419147916,1774941939528,488.4,0.00035089,120]
[419147917,1774941939947,488.4,0.00035089,120]
[419147918,1774941940375,488.4,0.00035089,120]
[419147985,1774942232533,-336.61409895,0.0001,2]
[419147991,1774942232589,-33.70906012,0.0001,2]
[419147993,1774942232599,-560.0,0.0001,2]
[419147995,1774942232609,-1000.0,0.00013699,2]
[419147997,1774942232618,-1200.0,0.00019943,2]
[419147999,1774942232628,-1113.62675204,0.00019944,2]
[419148002,1774942232638,-1993.74879498,0.00019944,2]
[419148004,1774942232649,-300.0,0.00020991,2]
[419148006,1774942232659,-300.0,0.00020992,2]
[419148008,1774942232668,-300.0,0.00020992,2]
[419148010,1774942232678,-300.0,0.00020992,2]
[419148012,1774942232688,-300.0,0.00020992,2]
[419148014,1774942232698,-304.22250368,0.00021126,2]
[419148016,1774942232707,-347.33517848,0.00021126,2]
[419148018,1774942232718,-413.0,0.00022,2]
[419148020,1774942232727,-191.0,0.00022,2]
[419148022,1774942232737,-286.98,0.0002269,10]
[419148024,1774942232747,-239.15,0.0002269,10]
[419148026,1774942232757,-2424.51964286,0.000227,2]
[419148028,1774942232767,-2128.48201764,0.000227,2]
[419148030,1774942232777,-5980.33248929,0.000227,2]
[419148032,1774942232789,-252.513281,0.000227,2]
[419148110,1774942241401,-215.52738814,0.00022699,2]
[419148112,1774942241411,-341.13310424,0.00022699,2]
[419148114,1774942241421,-500.0,0.00022699,2]
[419148115,1774942241431,-77.42896362,0.00022699,2]
[419148118,1774942241443,-424.14595534,0.00022699,2]
[419148120,1774942241453,-500.0,0.00022699,2]
[419148122,1774942241462,-101.85404468,0.00022699,2]
[419148128,1774942241511,-392.96551624,0.00022699,2]
[419148130,1774942241520,-7428.23673396,0.000227,2]
[419148143,1774942241681,-484.0,0.000227,2]
[419148145,1774942241692,-2291.30071947,0.000227,2]